bitfinex/quotes_BTCUSD_20250709
["timestamp","ask_amount","ask_price","bid_price","bid_amount"]
[1752056264565,0.0002,108940.0,108930.0,0.80365394]
[1752056265093,0.00937869,108940.0,108930.0,0.80365394]
[1752056265508,0.00937869,108940.0,108930.0,0.49983364]
[1752056265725,0.00937869,108940.0,108930.0,0.48353364]
[1752056265941,0.00937869,108940.0,108930.0,0.78735394]
[1752056266408,0.0002,108940.0,108930.0,0.78735394]
[1752056266605,0.0093786,108940.0,108930.0,0.78735394]
[1752056267109,0.0093786,108940.0,108930.0,0.48353364]
[1752056267308,0.0093786,108940.0,108930.0,0.78735394]
[1752056268002,0.01855729,108940.0,108930.0,0.78735394]
[1752056268421,0.0093786,108940.0,108930.0,0.7873538]
[1752056268922,0.0093786,108940.0,108930.0,0.78735334]
[1752056269226,0.01855729,108940.0,108930.0,0.78735334]
[1752056269746,0.0093786,108940.0,108930.0,0.78735334]
[1752056270818,0.01855737,108940.0,108930.0,0.78735334]
[1752056270930,0.0093786,108940.0,108930.0,0.78735334]
[1752056271539,0.0093786,108940.0,108930.0,0.78735354]
[1752056272448,0.01855729,108940.0,108930.0,0.78735354]
[1752056273286,0.0093786,108940.0,108930.0,0.78735354]
[1752056274154,0.0002,108940.0,108930.0,0.78735354]
[1752056274405,0.0002,108940.0,108930.0,0.76375929]
[1752056274611,0.0002,108940.0,108930.0,0.78735551]
[1752056274831,0.0002,108940.0,108930.0,0.7873551]
[1752056275733,0.0002,108940.0,108930.0,1.13223704]
[1752056275947,0.0002,108940.0,108930.0,1.24216009]
[1752056276773,0.0002,108940.0,108930.0,1.24516009]
[1752056279792,0.0002,108940.0,108930.0,1.27275333]
[1752056280546,0.0002,108940.0,108930.0,1.25559274]
[1752056280757,0.0002,108940.0,108930.0,1.27273661]
[1752056285058,0.0002,108940.0,108930.0,1.61273661]
[1752056285665,0.0002,108940.0,108930.0,1.91123661]
[1752056291188,0.0002,108940.0,108930.0,1.91123077]
[1752056293813,0.0002,108940.0,108930.0,1.30359017]
[1752056294024,0.0002,108940.0,108930.0,1.91123077]
[1752056305550,0.0341,108950.0,108940.0,0.81876496]
[1752056305746,0.0341,108950.0,108940.0,1.07265755]
[1752056306907,0.03456654,108950.0,108940.0,1.07265755]
[1752056311526,0.03456654,108950.0,108940.0,1.07265874]
[1752056314188,0.03456654,108950.0,108940.0,0.46501814]
[1752056314395,0.03456654,108950.0,108940.0,1.07265874]
[1752056318175,0.0437443,108950.0,108940.0,1.07265874]
[1752056320968,0.05292223,108950.0,108940.0,1.07265874]
[1752056321196,0.05292214,108950.0,108940.0,1.07265874]
[1752056321717,0.06210015,108950.0,108940.0,1.07265874]
[1752056322992,0.06210007,108950.0,108940.0,0.46501814]
[1752056323201,0.2548492,108950.0,108940.0,1.00695818]
[1752056323411,0.07127876,108950.0,108940.0,0.85107665]
[1752056323613,0.26402763,108950.0,108940.0,0.85107673]
[1752056323891,0.08045719,108950.0,108940.0,0.8602555]
[1752056324087,0.08045719,108950.0,108940.0,0.5564352]
[1752056324294,0.08045719,108950.0,108940.0,0.8602555]
[1752056326419,0.08045719,108950.0,108940.0,0.86026923]
[1752056326564,0.07127876,108950.0,108940.0,0.86026923]
[1752056326975,0.07127876,108950.0,108940.0,0.8602685]
[1752056327179,0.07127876,108950.0,108940.0,0.85383491]
[1752056327383,0.07127876,108950.0,108940.0,0.86026835]
[1752056329299,0.07127867,108950.0,108940.0,0.86026835]
[1752056332915,0.06210041,108950.0,108940.0,0.86026835]
[1752056333131,0.06210041,108950.0,108940.0,0.86026664]
[1752056333345,0.07127859,108950.0,108940.0,0.86026664]
[1752056335081,0.06210041,108950.0,108940.0,0.86026664]
[1752056335432,0.06210041,108950.0,108940.0,0.55644634]
[1752056335615,0.06210041,108950.0,108940.0,0.86026664]
[1752056336058,0.06210041,108950.0,108940.0,0.86026606]
[1752056336752,0.07127867,108950.0,108940.0,0.55644576]
[1752056336966,0.07127867,108950.0,108940.0,0.86026606]
[1752056337161,0.06210041,108950.0,108940.0,0.86026606]
[1752056337727,0.07127867,108950.0,108940.0,0.86026606]
[1752056338132,0.07127859,108950.0,108940.0,0.86026606]
[1752056339104,0.08045685,108950.0,108940.0,0.86026606]
[1752056340552,0.08045736,108950.0,108940.0,0.55644576]
[1752056340733,0.08045736,108950.0,108940.0,0.86026606]
[1752056341608,0.07127901,108950.0,108940.0,0.86026606]
[1752056341999,0.08045736,108950.0,108940.0,0.86026606]
[1752056347132,0.08045736,108950.0,108940.0,0.55644576]
[1752056347352,0.08045736,108950.0,108940.0,0.86026606]
[1752056351579,0.2640283,108950.0,108940.0,0.86026606]
[1752056351994,0.08045786,108950.0,108940.0,0.86026606]
[1752056352424,0.08045786,108950.0,108940.0,0.86027289]
[1752056353038,0.2640283,108950.0,108940.0,0.86027289]
[1752056353468,0.08045786,108950.0,108940.0,0.86027289]
[1752056353702,0.2640283,108950.0,108940.0,0.86027289]
[1752056353912,0.54031406,108950.0,108940.0,0.42821974]
[1752056354579,0.54031406,108950.0,108940.0,0.48313656]
[1752056354785,0.54031406,108950.0,108940.0,0.16086927]
[1752056354988,0.54031406,108950.0,108940.0,0.29954927]
[1752056355124,0.54031406,108950.0,108940.0,0.48313656]
[1752056355517,0.54031406,108950.0,108940.0,0.29954927]
[1752056356136,0.23649376,108950.0,108940.0,0.29954927]
[1752056356337,0.23649376,108950.0,108940.0,0.21719106]
[1752056358648,0.23649376,108950.0,108940.0,0.40077835]
[1752056360843,0.23649376,108950.0,108940.0,0.40995771]
[1752056361047,0.54031406,108950.0,108940.0,0.21743106]
[1752056363044,0.67923406,108950.0,108940.0,0.21743106]
[1752056364345,0.67923406,108950.0,108940.0,0.07851106]
[1752056364978,0.37541376,108950.0,108940.0,0.07851106]
[1752056365405,0.37541376,108950.0,108940.0,0.1196724]
[1752056366900,0.37541376,108950.0,108940.0,0.11967017]
[1752056368193,0.3843648,108950.0,108940.0,0.11967017]
[1752056368611,0.3843648,108950.0,108940.0,0.06475335]
[1752056381235,0.3843648,108950.0,108940.0,0.11967017]
[1752056381641,0.6881851,108950.0,108940.0,0.11967017]
[1752056382227,0.6881851,108950.0,108940.0,0.06475335]
[1752056384820,0.6881851,108950.0,108940.0,0.0647564]
[1752056401233,0.6881851,108950.0,108940.0,0.06475801]
[1752056402620,0.3843648,108950.0,108940.0,0.06475801]
[1752056403038,0.6881851,108950.0,108940.0,0.06475801]
[1752056409828,0.6881851,108950.0,108940.0,0.06476316]
[1752056415344,0.3843648,108950.0,108940.0,0.06476316]
[1752056415529,0.3843648,108950.0,108940.0,0.06477043]
[1752056415916,0.6881851,108950.0,108940.0,0.06477043]
[1752056417903,0.3843648,108950.0,108940.0,0.06477043]
[1752056420071,0.3843648,108950.0,108940.0,0.02360909]
[1752056421518,0.3843648,108950.0,108940.0,0.06481979]
[1752056421714,0.37541376,108950.0,108940.0,0.06481979]
[1752056422312,0.38469615,108950.0,108940.0,0.06481979]
[1752056424358,0.38469615,108950.0,108940.0,0.06482019]
[1752056427587,0.37541376,108950.0,108940.0,0.06482019]
[1752056427792,0.34351376,108950.0,108940.0,0.06482019]
[1752056430621,0.35259436,108950.0,108940.0,0.06482019]
[1752056433728,0.35259436,108950.0,108940.0,0.11976696]
[1752056437106,0.35259436,108950.0,108940.0,0.11976526]
[1752056438209,0.35259436,108950.0,108940.0,0.06481849]
[1752056440341,0.35259436,108950.0,108940.0,0.0648179]
[1752056447769,0.35259436,108950.0,108940.0,0.06481644]
[1752056448375,0.35259436,108950.0,108940.0,0.06481643]
[1752056457265,0.35259436,108950.0,108940.0,0.36863673]
[1752056463310,0.35259436,108950.0,108940.0,0.06481643]
[1752056465070,0.83198188,108950.0,108940.0,0.06481643]
[1752056465451,0.85956988,108950.0,108940.0,0.02360636]
[1752056467437,0.85956988,108950.0,108940.0,0.02360657]
[1752056473332,0.19276648,108940.0,108930.0,0.04121007]
[1752056473553,0.19276648,108940.0,108930.0,0.06480651]
[1752056474216,0.26578241,108940.0,108930.0,0.06480651]
[1752056475053,0.26578241,108940.0,108930.0,0.06580651]
[1752056475280,0.26578241,108940.0,108930.0,0.06580628]
[1752056475914,0.19276648,108940.0,108930.0,0.06780628]
[1752056478736,0.19276648,108940.0,108930.0,0.25141042]
[1752056478948,0.19276648,108940.0,108930.0,0.23424937]
[1752056479163,0.19276648,108940.0,108930.0,0.25140868]
[1752056480473,0.19276648,108940.0,108930.0,0.06780454]
[1752056484619,0.21951024,108940.0,108930.0,0.06780454]
[1752056484829,0.21951024,108940.0,108930.0,0.06780448]
[1752056487277,0.19276648,108940.0,108930.0,0.06780448]
[1752056490058,0.19276648,108940.0,108930.0,0.37162478]
[1752056491725,0.19276648,108940.0,108930.0,0.55522892]
[1752056492382,0.19276648,108940.0,108930.0,0.61017569]
[1752056492791,0.19276648,108940.0,108930.0,0.42657155]
[1752056496490,0.19276648,108940.0,108930.0,0.42659285]
[1752056502265,0.19276648,108940.0,108930.0,0.42659287]
[1752056504339,0.33144648,108940.0,108930.0,0.42659287]
[1752056506084,0.38271492,108940.0,108930.0,0.12277257]
[1752056506299,0.68653522,108940.0,108930.0,0.12277257]
[1752056506533,0.68653522,108940.0,108930.0,0.0678258]
[1752056507607,0.68653522,108940.0,108930.0,0.0658258]
[1752056508219,0.68653522,108940.0,108930.0,0.06582751]
[1752056508430,0.68653522,108940.0,108930.0,0.06582611]
[1752056509042,0.68653522,108940.0,108930.0,0.06482611]
[1752056510850,0.38271492,108940.0,108930.0,0.06482611]
[1752056511078,0.68653522,108940.0,108930.0,0.06482611]
[1752056513191,0.38271492,108940.0,108930.0,0.06482611]
[1752056513392,0.36264648,108940.0,108930.0,0.06482611]
[1752056513986,0.33144648,108940.0,108930.0,0.06482611]
[1752056515656,0.34694648,108940.0,108930.0,0.06482611]
[1752056516202,0.36244648,108940.0,108930.0,0.06482611]
[1752056516402,0.45388341,108940.0,108930.0,0.06482611]
[1752056517038,0.45388341,108940.0,108930.0,0.06482477]
[1752056518863,0.28420341,108940.0,108930.0,0.06482477]
[1752056519058,0.33144648,108940.0,108930.0,0.06482477]
[1752056519481,0.19276648,108940.0,108930.0,0.60719598]
[1752056519694,0.20194559,108940.0,108930.0,0.96127643]
[1752056519907,0.01835779,108940.0,108930.0,0.97963591]
[1752056520146,0.01835779,108940.0,108930.0,1.07710584]
[1752056520147,0.04589478,108940.0,108930.0,1.07710584]
[1752056520359,0.04589478,108940.0,108930.0,1.01297946]
[1752056520562,0.04589478,108940.0,108930.0,1.02215907]
[1752056520775,0.04589478,108940.0,108930.0,1.11830426]
[1752056521431,0.22948207,108940.0,108930.0,0.81448396]
[1752056521599,0.0367155,108940.0,108930.0,0.81448396]
[1752056521816,0.04589469,108940.0,108930.0,0.81448396]
[1752056521996,0.04589469,108940.0,108930.0,0.81448267]
[1752056522638,0.0091786,108940.0,108930.0,1.11830297]
[1752056522838,0.02753639,108940.0,108930.0,1.11830297]
[1752056523244,0.02753639,108940.0,108930.0,1.07709789]
[1752056523881,0.03671558,108940.0,108930.0,1.07709789]
[1752056524293,0.02753639,108940.0,108930.0,1.07709789]
[1752056524720,0.35245186,108950.0,108940.0,0.23404593]
[1752056524923,0.35245186,108950.0,108940.0,0.91567713]
[1752056525136,0.35245186,108950.0,108940.0,0.93402547]
[1752056526033,0.35345186,108950.0,108940.0,0.93402547]
[1752056527778,0.35345186,108950.0,108940.0,0.98896558]
[1752056529269,0.35445186,108950.0,108940.0,0.98896558]
[1752056531030,0.35445186,108950.0,108940.0,0.93402547]
[1752056531251,0.35445186,108950.0,108940.0,0.93402346]
[1752056531568,0.35445186,108950.0,108940.0,0.94306243]
[1752056532307,0.15248489,108950.0,108940.0,0.94306184]
[1752056532520,0.17084142,108950.0,108940.0,0.94306184]
[1752056532980,0.16984142,108950.0,108940.0,0.94306184]
[1752056533409,0.35341186,108950.0,108940.0,0.94306184]
[1752056533622,0.37176822,108950.0,108940.0,0.94306184]
[1752056534055,0.37176822,108950.0,108940.0,0.94304377]
[1752056535101,0.36259038,108950.0,108940.0,0.933865]
[1752056536033,0.36159038,108950.0,108940.0,0.933865]
[1752056536453,0.35241228,108950.0,108940.0,0.92482603]
[1752056537104,0.35241228,108950.0,108940.0,0.92481595]
[1752056537603,0.35241228,108950.0,108940.0,0.9339948]
[1752056539177,0.32487698,108950.0,108940.0,0.264359]
[1752056539393,0.32487698,108950.0,108940.0,0.57053794]
[1752056540082,0.32487698,108950.0,108940.0,0.87434751]
[1752056543190,0.32487698,108950.0,108940.0,1.01354751]
[1752056543614,0.32543698,108950.0,108940.0,0.50778128]
[1752056543816,0.32543698,108950.0,108940.0,0.81160158]
[1752056544268,0.32543698,108950.0,108940.0,0.50778128]
[1752056545451,0.32543698,108950.0,108940.0,0.69136857]
[1752056545857,0.32543698,108950.0,108940.0,0.50773036]
[1752056547845,0.32543698,108950.0,108940.0,0.69131765]
[1752056548494,0.32543698,108950.0,108940.0,0.50773036]
[1752056548709,0.32543698,108950.0,108940.0,0.50773721]
[1752056548918,0.32543698,108950.0,108940.0,0.36853721]
[1752056549131,0.32543698,108950.0,108940.0,0.50773721]
[1752056551184,0.32543698,108950.0,108940.0,0.36853721]
[1752056551531,0.32543698,108950.0,108940.0,0.5521245]
[1752056551735,0.32543698,108950.0,108940.0,0.36853721]
[1752056554681,0.32543698,108950.0,108940.0,0.5521245]
[1752056554886,0.32543698,108950.0,108940.0,0.36853721]
[1752056559669,0.32543698,108950.0,108940.0,0.06471691]
[1752056559871,0.32543698,108950.0,108940.0,0.36853721]
[1752056560074,0.32543698,108950.0,108940.0,0.36858578]
[1752056565723,0.32543698,108950.0,108940.0,0.55217307]
[1752056565917,0.32543698,108950.0,108940.0,0.36858578]
[1752056566304,0.32543698,108950.0,108940.0,0.36861581]
[1752056575172,0.32543698,108950.0,108940.0,0.3686264]
[1752056575579,0.32543698,108950.0,108940.0,0.0648061]
[1752056575825,0.32543698,108950.0,108940.0,0.3686264]
[1752056576468,0.32543698,108950.0,108940.0,0.36862711]
[1752056577486,0.32543698,108950.0,108940.0,0.36864339]
[1752056579022,0.32543698,108950.0,108940.0,0.06482309]
[1752056579235,0.35653698,108950.0,108940.0,0.36864339]
[1752056582207,0.35653698,108950.0,108940.0,0.34503231]
[1752056582423,0.35653698,108950.0,108940.0,0.06482411]
[1752056582633,0.35653698,108950.0,108940.0,0.36864441]
[1752056583513,0.35653698,108950.0,108940.0,0.36864631]
[1752056587770,0.38412298,108950.0,108940.0,0.36864631]
[1752056587979,0.38412298,108950.0,108940.0,0.36731935]
[1752056589255,0.38412298,108950.0,108940.0,0.35147382]
[1752056592071,0.35302298,108950.0,108940.0,0.65529412]
[1752056592311,0.35302298,108950.0,108940.0,0.53506111]
[1752056593186,0.35302298,108950.0,108940.0,0.35147382]
[1752056594040,0.35302298,108950.0,108940.0,0.35147388]
[1752056595112,0.35302298,108950.0,108940.0,0.3514739]
[1752056598695,0.35302298,108950.0,108940.0,0.53506119]
[1752056600123,0.35302298,108950.0,108940.0,0.55223381]
[1752056600525,0.35302298,108950.0,108940.0,0.55223428]
[1752056601518,0.35302298,108950.0,108940.0,0.56141364]
[1752056602042,0.35302298,108950.0,108940.0,0.36864699]
[1752056602220,0.38472298,108950.0,108940.0,0.36864699]
[1752056603876,0.38472298,108950.0,108940.0,0.06482669]
[1752056604033,0.38472298,108950.0,108940.0,0.36864699]
[1752056606914,0.38472298,108950.0,108940.0,0.36864749]
[1752056613477,0.38472298,108950.0,108940.0,0.55223478]
[1752056613842,0.38472298,108950.0,108940.0,0.36864749]
[1752056614843,0.35302298,108950.0,108940.0,0.36864749]
[1752056616751,0.35302298,108950.0,108940.0,0.55223478]
[1752056616951,0.36208099,108950.0,108940.0,0.56141397]
[1752056619620,0.35290298,108950.0,108940.0,0.561414]
[1752056621851,0.35290298,108950.0,108940.0,0.2575937]
[1752056622062,0.35290298,108950.0,108940.0,0.561414]
[1752056622967,0.21382298,108950.0,108940.0,0.561414]
[1752056623169,0.16932057,108950.0,108940.0,0.9709322]
[1752056624534,0.17849892,108950.0,108940.0,0.9709322]
[1752056627571,0.17849892,108950.0,108940.0,0.97092921]
[1752056627990,0.17849892,108950.0,108940.0,0.92971481]
[1752056628206,0.17849892,108950.0,108940.0,0.97090252]
[1752056629115,0.00266654,108950.0,108940.0,1.20809755]
[1752056629318,0.00266654,108950.0,108940.0,1.23556265]
[1752056629521,0.00266654,108950.0,108940.0,1.29045833]
[1752056630361,0.00266654,108950.0,108940.0,1.29145833]
[1752056631098,0.00266654,108950.0,108940.0,1.23856265]
[1752056633696,0.00266654,108950.0,108940.0,1.23855351]
[1752056634806,0.00266654,108950.0,108940.0,1.63381074]
[1752056640456,0.00266654,108950.0,108940.0,1.93231074]
[1752056641480,0.00266654,108950.0,108940.0,1.93226145]
[1752056648733,0.00266654,108950.0,108940.0,1.62844115]
[1752056650657,0.00266654,108950.0,108940.0,1.93226145]
[1752056653202,0.00266654,108950.0,108940.0,1.93226472]
[1752056653427,0.00266654,108950.0,108940.0,1.84986944]
[1752056655977,0.00266654,108950.0,108940.0,1.83274321]
[1752056656222,0.00266654,108950.0,108940.0,1.84987521]
[1752056656382,0.00266654,108950.0,108940.0,1.95973558]
[1752056657275,0.00595755,108960.0,108950.0,0.21110498]
[1752056657518,0.00604316,108960.0,108950.0,1.25795091]
[1752056658486,0.00604316,108960.0,108950.0,1.20311402]
[1752056663536,0.00604316,108960.0,108950.0,1.21854547]
[1752056663966,0.00604316,108960.0,108950.0,1.20314547]
[1752056667346,0.00604316,108960.0,108950.0,1.20414547]
[1752056667951,0.00604316,108960.0,108950.0,1.23744547]
[1752056668124,0.00604316,108960.0,108950.0,1.3288824]
[1752056672299,0.00604316,108960.0,108950.0,1.24662707]
[1752056672978,0.00604316,108960.0,108950.0,1.35648744]
[1752056673598,0.00604316,108960.0,108950.0,1.66030774]
[1752056673816,0.00604316,108960.0,108950.0,1.35648744]
[1752056677356,0.00604316,108960.0,108950.0,1.69648744]
[1752056677550,0.0022,108970.0,108960.0,0.22698561]
[1752056677752,0.0022,108970.0,108960.0,1.2280877]
[1752056678698,0.0022,108970.0,108960.0,1.31033455]
[1752056679425,0.0022,108970.0,108960.0,1.31233455]
[1752056680359,0.0022,108970.0,108960.0,1.61615485]
[1752056680599,0.0022,108970.0,108960.0,1.31233455]
[1752056682076,0.0022,108970.0,108960.0,1.31333455]
[1752056682805,0.0022,108970.0,108960.0,0.70569395]
[1752056683048,0.0022,108970.0,108960.0,1.29743455]
[1752056685421,0.0022,108970.0,108960.0,1.27384999]
[1752056685618,0.0022,108970.0,108960.0,1.29739751]
[1752056689151,0.0022,108970.0,108960.0,1.29739938]
[1752056691536,0.0022,108970.0,108960.0,1.29740156]
[1752056697515,0.0022,108970.0,108960.0,1.29740632]
[1752056698832,0.0022,108970.0,108960.0,1.29741973]
[1752056700288,0.0022,108970.0,108960.0,1.21517288]
[1752056700505,0.0022,108970.0,108960.0,1.21517523]
[1752056702208,0.0022,108970.0,108960.0,1.29745838]
[1752056702423,0.0022,108970.0,108960.0,1.21517523]
[1752056703503,0.0022,108970.0,108960.0,1.3248377]
[1752056704830,0.0022,108970.0,108960.0,1.32484592]
[1752056705014,0.0022,108970.0,108960.0,1.21518345]
[1752056705876,0.0022,108970.0,108960.0,1.32484592]
[1752056707628,0.0328,108970.0,108960.0,1.32484592]
[1752056708288,0.0328,108970.0,108960.0,1.21518345]
[1752056711423,0.0328,108970.0,108960.0,1.19803413]
[1752056711638,0.0328,108970.0,108960.0,1.21518657]
[1752056713523,0.04197607,108970.0,108960.0,1.21518657]
[1752056713740,0.0328,108970.0,108960.0,1.21518657]
[1752056715391,0.06032898,108970.0,108960.0,0.32000182]
[1752056715599,0.06950565,108970.0,108960.0,0.76282212]
[1752056716276,0.06950556,108970.0,108960.0,0.76282212]
[1752056718221,0.06950556,108970.0,108960.0,0.45900182]
[1752056718422,0.06950556,108970.0,108960.0,0.76282212]
[1752056719679,0.06950548,108970.0,108960.0,0.76282212]
[1752056720361,0.06950548,108970.0,108960.0,0.76281955]
[1752056721190,0.26221965,108970.0,108960.0,0.45891958]
[1752056721679,0.26221965,108970.0,108960.0,0.46809675]
[1752056721902,0.26221965,108970.0,108960.0,0.77191705]
[1752056722115,0.0786829,108970.0,108960.0,0.78109414]
[1752056722325,0.26221965,108970.0,108960.0,0.47727384]
[1752056722546,0.26221965,108970.0,108960.0,0.78109414]
[1752056722766,0.06950607,108970.0,108960.0,0.78109414]
[1752056723410,0.07868282,108970.0,108960.0,0.78109414]
[1752056726630,0.26221957,108970.0,108960.0,0.78109414]
[1752056727014,0.26221957,108970.0,108960.0,0.77191705]
[1752056727257,0.26222007,108970.0,108960.0,0.75356263]
[1752056727468,0.26222007,108970.0,108960.0,0.77191722]
[1752056729171,0.40110007,108970.0,108960.0,0.77191768]
[1752056729580,0.39192357,108970.0,108960.0,0.46809755]
[1752056729821,0.39192357,108970.0,108960.0,0.7810951]
[1752056730629,0.39192357,108970.0,108960.0,0.78109468]
[1752056731077,0.39192357,108970.0,108960.0,0.64217468]
[1752056731991,0.39192357,108970.0,108960.0,0.64217492]
[1752056733278,0.39192357,108970.0,108960.0,0.33835462]
[1752056733498,0.39192357,108970.0,108960.0,0.64217492]
[1752056733940,0.39192357,108970.0,108960.0,0.62817492]
[1752056734374,0.39192357,108970.0,108960.0,0.61899775]
[1752056734584,0.38274699,108970.0,108960.0,0.61899775]
[1752056735158,0.38274699,108970.0,108960.0,0.62817492]
[1752056735634,0.38274699,108970.0,108960.0,0.61899775]
[1752056737248,0.38274699,108970.0,108960.0,0.62817492]
[1752056737865,0.38274699,108970.0,108960.0,0.62817596]
[1752056739571,0.38274699,108970.0,108960.0,0.60982154]
[1752056740813,0.38274699,108970.0,108960.0,0.60982203]
[1752056741569,0.38274699,108970.0,108960.0,0.61899928]
[1752056742423,0.38274699,108970.0,108960.0,0.58228976]
[1752056742424,0.36439358,108970.0,108960.0,0.58228976]
[1752056742595,0.36439358,108970.0,108960.0,0.64637192]
[1752056743808,0.36439358,108970.0,108960.0,0.65554943]
[1752056745807,0.65903705,108970.0,108960.0,0.16382044]
[1752056746231,0.75047398,108970.0,108960.0,0.16382044]
[1752056747246,0.75047398,108970.0,108960.0,0.12266756]
[1752056747675,0.84191091,108970.0,108960.0,0.12266756]
[1752056748531,0.84191091,108970.0,108960.0,0.12166756]
[1752056748755,0.84191091,108970.0,108960.0,0.11966756]
[1752056749307,0.84291091,108970.0,108960.0,0.06476299]
[1752056749513,0.84291091,108970.0,108960.0,0.06476639]
[1752056753746,0.75147398,108970.0,108960.0,0.06476639]
[1752056755446,0.75147398,108970.0,108960.0,0.05833348]
[1752056755662,0.75147398,108970.0,108960.0,0.06476323]
[1752056758546,0.75147398,108970.0,108960.0,0.06476217]
[1752056759115,0.44765368,108970.0,108960.0,0.06476217]
[1752056759278,0.75147398,108970.0,108960.0,0.02358227]
[1752056760799,0.84291091,108970.0,108960.0,0.02358227]
[1752056761107,0.84291091,108970.0,108960.0,0.02357152]
[1752056762508,0.75147398,108970.0,108960.0,0.02357152]
[1752056765308,0.75147398,108970.0,108960.0,0.06475142]
[1752056769386,0.75147398,108970.0,108960.0,0.06475438]
[1752056770124,0.75147398,108970.0,108960.0,0.06475454]
[1752056771321,0.75147398,108970.0,108960.0,0.06473238]
[1752056772373,0.75147398,108970.0,108960.0,0.0647387]
[1752056773289,0.76510396,108970.0,108960.0,0.0647387]
[1752056775270,0.76510396,108970.0,108960.0,0.06474539]
[1752056778143,0.76510396,108970.0,108960.0,0.06475256]
[1752056781254,0.76510396,108970.0,108960.0,0.06475371]
[1752056786782,0.76510396,108970.0,108960.0,0.02359597]
[1752056787658,1.10510396,108970.0,108960.0,0.02359597]
[1752056788076,1.13268796,108970.0,108960.0,0.02359597]
[1752056788283,1.45104911,108970.0,108960.0,0.02359597]
[1752056789149,1.14622881,108970.0,108960.0,0.02359597]
[1752056789355,1.14822881,108970.0,108960.0,0.02359597]
[1752056790167,1.15022881,108970.0,108960.0,0.02359597]
[1752056807686,0.1927311,108960.0,108950.0,0.04117531]
[1752056807896,0.81830526,108960.0,108950.0,0.02358775]
[1752056808317,0.81830526,108960.0,108950.0,0.02358793]
[1752056808525,0.81830526,108960.0,108950.0,0.06476324]
[1752056809873,0.81830526,108960.0,108950.0,0.06476596]
[1752056815256,0.81830526,108960.0,108950.0,0.06476596]
[1752056819391,0.72686833,108960.0,108950.0,0.08194112]
[1752056819592,0.72686833,108960.0,108950.0,0.06478428]
[1752056821402,0.72686833,108960.0,108950.0,0.04760912]
[1752056821601,0.72686833,108960.0,108950.0,0.06478415]
[1752056828820,0.75866833,108960.0,108950.0,0.06478415]
[1752056829123,0.79537202,108960.0,108950.0,0.06478415]
[1752056829323,0.80991287,108960.0,108950.0,0.06478415]
[1752056829564,1.11373317,108960.0,108950.0,0.06478415]
[1752056829767,1.14132017,108960.0,108950.0,0.06478415]
[1752056830167,0.83749987,108960.0,108950.0,0.06478415]
[1752056830397,0.83749987,108960.0,108950.0,0.06478198]
[1752056830601,0.80991287,108960.0,108950.0,0.06478198]
[1752056832841,0.80991287,108960.0,108950.0,0.06481935]
[1752056833160,0.80987287,108960.0,108950.0,0.06481935]
[1752056833490,0.50605257,108960.0,108950.0,0.02360667]
[1752056833689,0.80987287,108960.0,108950.0,0.02360667]
[1752056834097,0.80987287,108960.0,108950.0,0.06481935]
[1752056834525,0.80987287,108960.0,108950.0,0.02360667]
[1752056835487,1.11369317,108960.0,108950.0,0.02360667]
[1752056835646,0.80987287,108960.0,108950.0,0.02360667]
[1752056839162,0.80987287,108960.0,108950.0,0.00643381]
[1752056839380,0.80987287,108960.0,108950.0,0.02360669]
[1752056842964,0.77807287,108960.0,108950.0,0.02360669]
[1752056843810,0.33541257,108960.0,108950.0,0.02360669]
[1752056844004,0.77807287,108960.0,108950.0,0.02360669]
[1752056845093,0.77807287,108960.0,108950.0,0.02361261]
[1752056853947,0.77807287,108960.0,108950.0,0.02361632]
[1752056857032,0.19274879,108950.0,108940.0,0.43093755]
[1752056857238,0.42302572,108950.0,108940.0,0.45455803]
[1752056857452,0.42302572,108950.0,108940.0,0.41334535]
[1752056858242,0.42302572,108950.0,108940.0,0.41434535]
[1752056859736,0.42302572,108950.0,108940.0,0.39716682]
[1752056859948,0.42302572,108950.0,108940.0,0.41434856]
[1752056861931,0.42302572,108950.0,108940.0,0.41534856]
[1752056862823,0.42302572,108950.0,108940.0,0.41534857]
[1752056865679,0.42302572,108950.0,108940.0,0.39172487]
[1752056865863,0.42302572,108950.0,108940.0,0.11152967]
[1752056866003,0.42302572,108950.0,108940.0,0.41534997]
[1752056868715,0.42333537,108950.0,108940.0,0.41534997]
[1752056869911,0.42333537,108950.0,108940.0,0.08052953]
[1752056870125,0.42333537,108950.0,108940.0,0.42558627]
[1752056870498,0.42333537,108950.0,108940.0,0.12176597]
[1752056870689,0.42333537,108950.0,108940.0,0.42558627]
[1752056871279,0.42333537,108950.0,108940.0,0.3706817]
[1752056871892,0.42333537,108950.0,108940.0,0.42558627]
[1752056872336,0.42333537,108950.0,108940.0,0.3706817]
[1752056873491,0.42333537,108950.0,108940.0,0.0668614]
[1752056873704,0.42333537,108950.0,108940.0,0.3706817]
[1752056875370,0.5147723,108950.0,108940.0,0.3706817]
[1752056876682,0.52387855,108950.0,108940.0,0.3706817]
[1752056877531,0.43244162,108950.0,108940.0,0.3706817]
[1752056877752,0.43244162,108950.0,108940.0,0.37068204]
[1752056880687,0.43244162,108950.0,108940.0,0.37068326]
[1752056882493,0.43244162,108950.0,108940.0,0.37069208]
[1752056884190,0.43244162,108950.0,108940.0,0.06687178]
[1752056885238,0.52387855,108950.0,108940.0,0.06687178]
[1752056885448,0.52387855,108950.0,108940.0,0.04323644]
[1752056885678,0.52387855,108950.0,108940.0,0.06687542]
[1752056886304,0.43244162,108950.0,108940.0,0.06687542]
[1752056886490,0.43244162,108950.0,108940.0,0.06587542]
[1752056886706,0.43244162,108950.0,108940.0,0.06487542]
[1752056887338,0.43244162,108950.0,108940.0,0.36869572]
[1752056888385,0.43244162,108950.0,108940.0,0.35150373]
[1752056888609,0.43244162,108950.0,108940.0,0.36869542]
[1752056889486,0.46568439,108950.0,108940.0,0.36869542]
[1752056894696,0.43236162,108950.0,108940.0,0.36869542]
[1752056894904,0.43236162,108950.0,108940.0,0.42359999]
[1752056896222,0.43236162,108950.0,108940.0,0.36869542]
[1752056897095,0.43236162,108950.0,108940.0,0.42359999]
[1752056906282,0.43236162,108950.0,108940.0,0.42360324]
[1752056910821,0.44439961,108950.0,108940.0,0.11978294]
[1752056910983,0.74821991,108950.0,108940.0,0.06487837]
[1752056912035,0.74821991,108950.0,108940.0,0.06487984]
[1752056912584,0.44439961,108950.0,108940.0,0.06487984]
[1752056913514,0.74821991,108950.0,108940.0,0.06487984]
[1752056914454,0.44439961,108950.0,108940.0,0.06487984]
[1752056915025,0.44439961,108950.0,108940.0,0.06487959]
[1752056916640,0.74821991,108950.0,108940.0,0.06487959]
[1752056920926,0.74821991,108950.0,108940.0,0.06488096]
[1752056921894,0.44439961,108950.0,108940.0,0.06488096]
[1752056922983,0.44439961,108950.0,108940.0,0.36870126]
[1752056923834,0.44439961,108950.0,108940.0,0.36870151]
[1752056926394,0.44439961,108950.0,108940.0,0.42360608]
[1752056926900,0.44439961,108950.0,108940.0,0.11978578]
[1752056926901,0.44435961,108950.0,108940.0,0.11978578]
[1752056927114,0.44435961,108950.0,108940.0,0.42360608]
[1752056927543,0.30563961,108950.0,108940.0,0.42360608]
[1752056927743,0.44435961,108950.0,108940.0,0.42360608]
[1752056930212,0.44435961,108950.0,108940.0,0.4236065]